bitfinex/quotes_BTCUSD_20240617
["timestamp","ask_amount","ask_price","bid_price","bid_amount"]
[1718657048980,0.001,66641.0,66640.0,0.90061812]
[1718657050029,0.001,66641.0,66640.0,1.363467]
[1718657050230,0.001,66641.0,66640.0,1.816487]
[1718657050477,0.001,66641.0,66640.0,2.00333321]
[1718657051054,0.0141575,66657.0,66656.0,0.06246621]
[1718657051391,0.32553771,66657.0,66656.0,0.18703141]
[1718657051606,0.32553771,66657.0,66656.0,0.25079597]
[1718657052109,0.32553771,66657.0,66656.0,0.23832976]
[1718657052516,0.42553771,66657.0,66656.0,0.25079597]
[1718657053611,0.51123771,66657.0,66656.0,0.25079597]
[1718657053766,0.51123771,66657.0,66656.0,0.25032976]
[1718657053970,0.51123771,66657.0,66656.0,0.24032976]
[1718657054381,0.51123771,66657.0,66656.0,0.18440662]
[1718657055385,0.1998575,66657.0,66656.0,0.18440662]
[1718657055581,0.1998575,66657.0,66656.0,0.19687283]
[1718657056917,0.24479597,66657.0,66656.0,0.19687283]
[1718657057097,0.24479597,66657.0,66656.0,0.19685915]
[1718657057305,0.1998575,66657.0,66656.0,0.19685915]
[1718657057430,0.1998575,66657.0,66656.0,0.23154857]
[1718657058257,0.1998575,66657.0,66656.0,0.10699705]
[1718657058454,0.1998575,66657.0,66656.0,0.07230763]
[1718657058822,0.1141575,66657.0,66656.0,0.07230763]
[1718657059092,0.1998575,66657.0,66656.0,0.05984142]
[1718657059682,0.0141575,66657.0,66656.0,0.22503651]
[1718657059870,0.0141575,66657.0,66656.0,0.73806051]
[1718657060071,0.0141575,66657.0,66656.0,0.81739256]
[1718657060306,0.0141575,66657.0,66656.0,0.18438542]
[1718657061183,0.0141575,66657.0,66656.0,0.19338542]
[1718657061618,0.0141575,66657.0,66656.0,0.20338542]
[1718657062352,0.0141575,66657.0,66656.0,0.07884142]
[1718657062866,0.0141575,66657.0,66656.0,0.069]
[1718657063063,0.05909597,66657.0,66656.0,0.069]
[1718657064226,0.0141575,66657.0,66656.0,0.069]
[1718657064749,0.0141575,66657.0,66656.0,0.08146621]
[1718657064950,0.0998575,66657.0,66656.0,0.36411243]
[1718657065109,0.0998575,66657.0,66656.0,0.2857576]
[1718657065328,0.0998575,66657.0,66656.0,0.41030381]
[1718657065972,0.0998575,66657.0,66656.0,0.37389257]
[1718657066971,0.0998575,66657.0,66656.0,0.57259257]
[1718657069323,0.0141575,66657.0,66656.0,0.72532145]
[1718657069527,0.0998575,66657.0,66656.0,0.72532145]
[1718657069726,0.0998575,66657.0,66656.0,0.21579257]
[1718657073285,0.41124468,66657.0,66656.0,0.21579257]
[1718657074851,0.41124468,66657.0,66656.0,0.20332636]
[1718657077311,0.41124468,66657.0,66656.0,0.27456057]
[1718657077639,0.32554468,66657.0,66656.0,0.27456057]
[1718657077980,0.41124468,66657.0,66656.0,0.21579257]
[1718657078200,0.32554468,66657.0,66656.0,0.95857617]
[1718657078403,0.32554468,66657.0,66656.0,0.88264545]
[1718657079990,0.32554468,66657.0,66656.0,0.73262145]
[1718657080356,0.32554468,66657.0,66656.0,0.20332636]
[1718657080556,0.32554468,66657.0,66656.0,0.07878015]
[1718657085420,0.32554468,66657.0,66656.0,0.09124636]
[1718657085696,0.0998575,66657.0,66656.0,0.136601]
[1718657086597,0.0141575,66657.0,66656.0,0.44972988]
[1718657086776,0.0998575,66657.0,66656.0,0.44972988]
[1718657086959,0.0141575,66657.0,66656.0,0.57427422]
[1718657087168,0.0998575,66657.0,66656.0,0.57427422]
[1718657088240,0.16212913,66657.0,66656.0,0.77437422]
[1718657088438,0.07642913,66657.0,66656.0,0.77437422]
[1718657088649,0.16212913,66657.0,66656.0,0.77437422]
[1718657089626,0.16212913,66657.0,66656.0,0.72901958]
[1718657089831,0.16212894,66657.0,66656.0,0.72901958]
[1718657095302,0.07642894,66657.0,66656.0,0.72901958]
[1718657095526,0.16212894,66657.0,66656.0,0.72901958]
[1718657100408,0.07642894,66657.0,66656.0,0.72901958]
[1718657100625,0.16212894,66657.0,66656.0,0.72901958]
[1718657100979,0.16212894,66657.0,66656.0,0.20332449]
[1718657102424,0.16212894,66657.0,66656.0,0.07878015]
[1718657102809,0.25196858,66657.0,66656.0,0.069]
[1718657103251,0.49885788,66657.0,66656.0,0.069]
[1718657103665,0.58455788,66657.0,66656.0,0.069]
[1718657104295,0.58452381,66657.0,66656.0,0.069]
[1718657104695,0.49472602,66657.0,66656.0,0.069]
[1718657105448,0.49473227,66657.0,66656.0,0.069]
[1718657106060,0.49473227,66657.0,66656.0,0.07878985]
[1718657110552,0.49473227,66657.0,66656.0,0.09125606]
[1718657110957,0.49473227,66657.0,66656.0,0.49867773]
[1718657110958,0.12138286,66657.0,66656.0,0.49867773]
[1718657111127,0.12138286,66657.0,66656.0,0.76524701]
[1718657111323,0.0141575,66657.0,66656.0,0.76524701]
[1718657112421,0.0141575,66657.0,66656.0,1.21531901]
[1718657112736,0.0141575,66657.0,66656.0,0.91527101]
[1718657112971,0.0141575,66657.0,66656.0,0.76524701]
[1718657113672,0.03330983,66659.0,66658.0,0.01246621]
[1718657113881,0.09557895,66659.0,66658.0,0.41148319]
[1718657114085,0.34466703,66659.0,66658.0,0.41148319]
[1718657114291,0.34466703,66659.0,66658.0,1.87579948]
[1718657114292,0.3113572,66659.0,66658.0,1.87579948]
[1718657114513,0.04494767,66666.0,66665.0,0.55686921]
[1718657114722,0.00854,66668.0,66667.0,0.40686621]
[1718657115134,0.31988808,66668.0,66667.0,0.5411841]
[1718657115320,0.31988808,66668.0,66667.0,1.2911791]
[1718657115528,0.31988808,66668.0,66667.0,1.45406607]
[1718657115746,0.31988808,66668.0,66667.0,1.14406807]
[1718657115898,0.31988808,66668.0,66667.0,1.18742334]
[1718657116304,0.31988808,66668.0,66667.0,0.73742634]
[1718657116482,0.31988808,66668.0,66667.0,0.88742534]
[1718657116733,0.31988808,66668.0,66667.0,1.18742334]
[1718657117323,0.31988808,66668.0,66667.0,1.21642334]
[1718657117526,0.31988808,66668.0,66667.0,1.20742334]
[1718657118000,0.31988808,66668.0,66667.0,1.80741934]
[1718657118161,0.31988808,66668.0,66667.0,1.50742134]
[1718657119148,0.31988808,66668.0,66667.0,1.51842134]
[1718657119363,0.31988808,66668.0,66667.0,1.50842134]
[1718657119583,0.31988808,66668.0,66667.0,1.49742134]
[1718657119984,0.31988808,66668.0,66667.0,1.51142134]
[1718657120381,0.31988808,66668.0,66667.0,1.52142134]
[1718657120784,0.31988808,66668.0,66667.0,1.51142134]
[1718657121229,0.31988808,66668.0,66667.0,1.52542134]
[1718657122638,0.31988808,66668.0,66667.0,1.77541934]
[1718657122841,0.31988808,66668.0,66667.0,2.0921036]
[1718657123018,0.31988808,66668.0,66667.0,2.0064036]
[1718657123718,0.31988808,66668.0,66667.0,1.9784036]
[1718657124152,0.31848808,66668.0,66667.0,2.0064036]
[1718657124552,0.00714,66668.0,66667.0,1.9924036]
[1718657125154,0.00714,66668.0,66667.0,2.0064036]
[1718657127674,0.00714,66668.0,66667.0,2.1764036]
[1718657127887,0.00714,66668.0,66667.0,2.8664036]
[1718657128076,0.00714,66668.0,66667.0,2.8064036]
[1718657128286,0.00714,66668.0,66667.0,2.0064036]
[1718657128689,0.00714,66668.0,66667.0,2.8184036]
[1718657128894,0.00714,66668.0,66667.0,2.8484036]
[1718657129103,0.00714,66668.0,66667.0,2.8284016]
[1718657129304,0.00714,66668.0,66667.0,3.3684016]
[1718657129737,0.00714,66668.0,66667.0,3.0684036]
[1718657129933,0.00714,66668.0,66667.0,3.3684016]
[1718657130151,0.00714,66668.0,66667.0,3.0684036]
[1718657130367,0.00714,66668.0,66667.0,3.3404016]
[1718657130774,0.00714,66668.0,66667.0,3.3684016]
[1718657131137,0.00018,66672.0,66671.0,1.57437621]
[1718657131399,0.00018,66672.0,66671.0,2.3777207]
[1718657131757,0.00018,66672.0,66671.0,2.39031589]
[1718657132254,0.00018,66672.0,66671.0,3.12031589]
[1718657132459,0.00018,66672.0,66671.0,3.13431589]
[1718657132863,0.00018,66672.0,66671.0,3.19431589]
[1718657133975,0.00018,66672.0,66671.0,3.18031589]
[1718657134189,0.08588,66672.0,66671.0,0.24179028]
[1718657134608,0.08588,66672.0,66671.0,0.25579028]
[1718657135026,0.08588,66672.0,66671.0,0.24179028]
[1718657135232,0.08588,66672.0,66671.0,0.22932407]
[1718657135462,0.08588,66672.0,66671.0,0.24179028]
[1718657135672,0.08588,66672.0,66671.0,0.2655031]
[1718657135887,0.08588,66672.0,66671.0,0.26596931]
[1718657135888,0.00018,66672.0,66671.0,0.26596931]
[1718657136083,0.08588,66672.0,66671.0,0.25196931]
[1718657137411,0.08588,66672.0,66671.0,0.26396931]
[1718657137625,0.08588,66672.0,66671.0,0.27796931]
[1718657138270,0.00018,66672.0,66671.0,0.25379028]
[1718657138514,0.08588,66672.0,66671.0,0.25379028]
[1718657138732,0.08588,66672.0,66671.0,0.23979028]
[1718657138905,0.08588,66672.0,66671.0,0.25079028]
[1718657139537,0.08588,66672.0,66671.0,0.03559519]
[1718657139739,0.83582,66672.0,66671.0,0.08559519]
[1718657139945,0.93582,66672.0,66671.0,0.073]
[1718657140142,0.93582,66672.0,66671.0,0.023]
[1718657140343,0.93582,66672.0,66648.0,0.00018061]
[1718657140344,0.30003,66660.0,66657.0,0.05]
[1718657140563,0.30003,66660.0,66648.0,0.00018061]
[1718657140564,0.300066,66652.0,66651.0,0.05]
[1718657140901,0.300048,66656.0,66648.0,0.00018061]
[1718657140902,0.750197,66649.0,66648.0,0.00018061]
[1718657141303,0.850197,66649.0,66648.0,0.00018061]
[1718657141517,1.064497,66649.0,66648.0,0.00018061]
[1718657141664,1.364576,66649.0,66648.0,0.00018061]
[1718657141895,1.364576,66649.0,66638.0,0.000935]
[1718657141896,0.450186,66639.0,66638.0,0.000935]
[1718657142083,0.664486,66639.0,66638.0,0.000935]
[1718657142297,0.364362,66639.0,66638.0,0.000935]
[1718657142493,0.04392205,66646.0,66641.0,0.05]
[1718657142661,0.1,66648.0,66641.0,0.05]
[1718657142871,0.1,66648.0,66647.0,0.05]
[1718657143097,0.3143,66648.0,66647.0,0.05]
[1718657143307,0.464342,66648.0,66647.0,0.06112878]
[1718657143475,0.3143,66648.0,66647.0,0.05]
[1718657144086,0.464342,66648.0,66647.0,0.05]
[1718657144310,0.764426,66648.0,66647.0,0.05]
[1718657144760,0.3143,66648.0,66647.0,0.05]
[1718657144979,0.3253,66648.0,66647.0,0.05]
[1718657145155,0.3343,66648.0,66647.0,0.051]
[1718657145329,0.784426,66648.0,66647.0,0.001]
[1718657145552,0.150051,66644.0,66643.0,0.05]
[1718657145772,0.250051,66644.0,66643.0,0.05]
[1718657145966,0.550153,66644.0,66643.0,0.05]
[1718657146318,0.550153,66644.0,66638.0,0.000935]
[1718657146319,0.1,66644.0,66641.0,0.05]
[1718657146466,0.150054,66643.0,66641.0,0.05]
[1718657146669,0.2143,66642.0,66641.0,0.05]
[1718657147519,0.012,66648.0,66641.0,0.05]
[1718657147728,0.2143,66643.0,66641.0,0.06246621]
[1718657147965,0.2143,66643.0,66642.0,0.01116511]
[1718657148090,0.2143,66643.0,66641.0,0.05]
[1718657148290,0.004,66642.0,66641.0,0.05]
[1718657148866,0.364354,66643.0,66641.0,0.05]
[1718657149030,0.450186,66639.0,66638.0,0.050935]
[1718657149195,0.75031,66639.0,66638.0,0.000935]
[1718657149395,0.450186,66639.0,66638.0,0.050935]
[1718657149605,0.02471113,66650.0,66643.0,0.05]
[1718657149816,0.2143,66644.0,66643.0,0.05]
[1718657150029,0.3143,66644.0,66643.0,0.05]
[1718657150246,0.3143,66644.0,66638.0,0.000935]
[1718657150247,0.300107,66643.0,66638.0,0.050935]
[1718657150447,0.300113,66642.0,66640.0,0.05]
[1718657150665,0.150062,66639.0,66638.0,0.050935]
[1718657151695,0.2143,66641.0,66640.0,0.05]
[1718657152112,0.364357,66641.0,66640.0,0.05]
[1718657152312,0.2143,66641.0,66640.0,0.05]
[1718657152926,0.1,66644.0,66643.0,0.05]
[1718657153120,0.2143,66644.0,66643.0,0.05]
[1718657153302,0.3143,66644.0,66643.0,0.05]
[1718657153808,0.300059,66654.0,66652.0,0.05]
[1718657153809,0.04262343,66654.0,66652.0,0.05]
[1718657154032,0.46433,66653.0,66652.0,0.05]
[1718657154496,0.3143,66653.0,66652.0,0.05]
[1718657154700,0.46433,66653.0,66652.0,0.05]
[1718657155339,0.764391,66653.0,66652.0,0.05]
[1718657155540,0.3143,66653.0,66652.0,0.05]
[1718657156788,0.3243,66653.0,66652.0,0.051]
[1718657157029,0.3343,66653.0,66652.0,0.052]
[1718657157258,0.774391,66653.0,66652.0,0.051]
[1718657157458,0.764391,66653.0,66652.0,0.05]
[1718657157667,1.072452,66653.0,66652.0,0.001]
[1718657157906,1.358957,66653.0,66652.0,0.001]
[1718657158132,1.759018,66653.0,66652.0,0.001]
[1718657158348,0.450186,66639.0,66638.0,0.000935]
[1718657158819,0.75031,66639.0,66638.0,0.000935]
[1718657159055,0.450186,66639.0,66638.0,0.000935]
[1718657159466,0.150062,66639.0,66638.0,0.000935]
[1718657160082,0.151062,66639.0,66638.0,0.008935]
[1718657160287,0.151062,66639.0,66638.0,0.007935]
[1718657160505,0.75131,66639.0,66638.0,0.007935]
[1718657160712,0.75131,66639.0,66638.0,0.008935]
[1718657160713,1.051434,66639.0,66638.0,0.008935]
[1718657160923,1.051434,66639.0,66638.0,0.001935]
[1718657160924,1.050434,66639.0,66638.0,0.001935]
[1718657161139,1.150434,66639.0,66638.0,0.002935]
[1718657161346,2.08599944,66639.0,66638.0,0.002935]
[1718657161556,2.08599944,66639.0,66622.0,0.05]
[1718657161557,0.150098,66623.0,66622.0,0.05]
[1718657161765,0.2143,66623.0,66622.0,0.05]
[1718657163053,0.664594,66623.0,66622.0,0.05]
[1718657163885,0.365398,66623.0,66622.0,0.06]
[1718657164116,0.366398,66623.0,66622.0,0.069]
[1718657164319,0.2163,66623.0,66622.0,0.069]
[1718657164536,0.366398,66623.0,66622.0,0.069]
[1718657164936,0.2163,66623.0,66622.0,0.069]
[1718657165792,0.666594,66623.0,66622.0,0.019]
[1718657165997,1.62007288,66623.0,66622.0,0.019]
[1718657166206,0.750637,66610.0,66609.0,0.050935]
[1718657166431,0.750637,66610.0,66609.0,0.000935]
[1718657166601,0.850637,66610.0,66609.0,0.000935]
[1718657167067,1.190687,66610.0,66609.0,0.000935]
[1718657167281,1.49639212,66610.0,66609.0,0.000935]
[1718657167700,1.50739212,66610.0,66609.0,0.001935]
[1718657167911,1.40782412,66610.0,66609.0,0.001935]
[1718657168042,1.40782412,66610.0,66609.0,0.000935]
[1718657168043,1.351679,66610.0,66609.0,0.000935]
[1718657168413,1.44930088,66610.0,66609.0,0.000935]
[1718657168598,1.54930088,66610.0,66609.0,0.000935]
[1718657168891,1.86094869,66610.0,66609.0,0.000935]
[1718657169255,1.54930088,66610.0,66609.0,0.000935]
[1718657169467,2.31395523,66610.0,66609.0,0.000935]
[1718657169652,0.150165,66593.0,66592.0,0.059394]
[1718657169948,0.2143,66593.0,66592.0,0.07018365]
[1718657170295,0.664796,66593.0,66592.0,0.009394]
[1718657170504,1.065127,66593.0,66592.0,0.009394]
[1718657170856,0.764796,66593.0,66592.0,0.009394]
[1718657171081,0.764796,66593.0,66592.0,0.012394]
[1718657171690,1.624796,66593.0,66592.0,0.012394]
[1718657173076,1.925127,66593.0,66592.0,0.012394]
[1718657173394,2.225458,66593.0,66592.0,0.012394]
[1718657173543,2.015458,66593.0,66592.0,0.015394]
[1718657173755,2.41149612,66593.0,66592.0,0.015394]
[1718657173965,0.1,66592.0,66585.0,0.009394]
[1718657174164,0.965207,66586.0,66585.0,0.009394]
[1718657174372,1.67731121,66586.0,66585.0,0.009394]
[1718657174548,1.37694821,66586.0,66585.0,0.009394]
[1718657174744,1.90565021,66586.0,66585.0,0.009394]
[1718657174959,1.71725421,66586.0,66585.0,0.009394]
[1718657175146,1.54857121,66586.0,66585.0,0.009394]
[1718657175342,1.84893421,66586.0,66585.0,0.010394]
[1718657176921,1.84893421,66586.0,66585.0,0.009394]
[1718657176922,2.00164677,66586.0,66585.0,0.009394]
[1718657177128,1.86293421,66586.0,66585.0,0.010394]
[1718657177732,1.87693421,66586.0,66585.0,0.010394]
[1718657177940,1.97693421,66586.0,66585.0,0.010394]
[1718657178135,0.850952,66582.0,66581.0,0.009394]
[1718657178397,1.56316799,66582.0,66581.0,0.009394]
[1718657178538,0.300413,66575.0,66573.0,0.009394]
[1718657178758,1.065332,66575.0,66573.0,0.009394]
[1718657179104,1.3771912,66575.0,66573.0,0.009394]
[1718657179233,1.065332,66575.0,66573.0,0.009394]
[1718657181288,1.070332,66575.0,66573.0,0.009394]
[1718657181487,1.2074061,66575.0,66573.0,0.009394]
[1718657181894,1.6519191,66575.0,66573.0,0.009394]
[1718657182095,1.6469191,66575.0,66573.0,0.009394]
[1718657182260,1.6519191,66575.0,66573.0,0.009394]
[1718657183631,1.3515061,66575.0,66573.0,0.009394]
[1718657183775,1.6619191,66575.0,66573.0,0.009394]
[1718657183984,1.7619191,66575.0,66573.0,0.009394]
[1718657184188,1.051459,66574.0,66573.0,0.009394]
[1718657184410,1.16709746,66574.0,66573.0,0.009394]
[1718657184573,3.60677414,66574.0,66573.0,0.009394]
[1718657184799,1.95944468,66574.0,66573.0,0.009394]
[1718657185053,2.01105656,66574.0,66573.0,0.009394]
[1718657185270,0.60948299,66574.0,66573.0,0.009394]
[1718657185473,0.358908,66574.0,66573.0,0.010394]
[1718657185672,1.023833,66574.0,66573.0,0.010394]
[1718657185900,1.073342,66574.0,66573.0,0.02137714]
[1718657186105,0.3223,66574.0,66573.0,0.15977407]
[1718657186312,0.3223,66574.0,66573.0,0.14730786]
[1718657186663,0.008,66574.0,66573.0,0.15977407]
[1718657186866,0.008,66574.0,66573.0,0.65218507]
[1718657186992,0.017,66574.0,66573.0,0.65218507]
[1718657187192,0.008,66574.0,66573.0,0.50197407]
[1718657187394,0.2143,66582.0,66581.0,0.01246621]
[1718657187605,0.2143,66582.0,66581.0,0.05]
[1718657188219,0.150171,66591.0,66584.0,0.1975]
[1718657188428,0.2143,66585.0,66584.0,0.1975]
[1718657188648,0.77627303,66585.0,66584.0,0.1975]
[1718657188891,0.62609003,66585.0,66581.0,0.051]
[1718657189096,0.150188,66583.0,66581.0,0.051]
[1718657189311,0.31178913,66582.0,66581.0,0.05]
[1718657189520,0.41178913,66582.0,66580.0,0.05]
[1718657189713,1.27705113,66581.0,66580.0,0.05]
[1718657189918,1.37705113,66581.0,66580.0,0.05]
[1718657190368,0.62608913,66581.0,66580.0,0.05]
[1718657190576,0.86236613,66581.0,66580.0,0.05]
[1718657190780,0.86236613,66581.0,66576.0,0.05]
[1718657190781,0.300391,66580.0,66576.0,0.05]
[1718657190985,0.450606,66577.0,66576.0,0.05]
[1718657191375,0.31178913,66577.0,66576.0,0.05]
[1718657191585,0.30963112,66577.0,66576.0,0.05]
[1718657191789,0.61003612,66577.0,66574.0,0.1614]
[1718657191990,0.450625,66574.0,66573.0,0.009394]
[1718657192364,0.550625,66574.0,66573.0,0.009394]
[1718657192666,1.151459,66574.0,66573.0,0.009394]
[1718657193703,0.851042,66574.0,66573.0,0.009394]
[1718657193916,0.550625,66574.0,66573.0,0.009394]
[1718657194340,0.1,66574.0,66573.0,0.009394]
[1718657194512,0.2143,66574.0,66573.0,0.009394]
[1718657194760,0.464508,66574.0,66573.0,0.009394]
[1718657195139,0.473508,66574.0,66573.0,0.009394]
[1718657195330,0.472508,66574.0,66573.0,0.010394]
[1718657195545,0.3223,66574.0,66573.0,0.010394]
[1718657195747,0.3293,66574.0,66573.0,0.010394]
[1718657195955,0.471508,66574.0,66573.0,0.009394]
[1718657196114,0.107,66574.0,66573.0,0.423694]
[1718657196476,0.013,66574.0,66573.0,0.43568204]
[1718657196706,0.013,66574.0,66573.0,0.44814825]
[1718657197970,0.013,66574.0,66573.0,0.43568204]
[1718657198361,0.01266182,66574.0,66573.0,0.43568204]
[1718657198903,0.31307882,66574.0,66573.0,0.43568204]
[1718657199077,0.41307882,66574.0,66573.0,0.43568204]
[1718657199301,0.56328682,66574.0,66573.0,0.43568204]
[1718657199833,0.86370382,66574.0,66573.0,0.43568204]
[1718657200526,0.11266182,66574.0,66573.0,0.43568204]
[1718657200716,0.01266182,66574.0,66573.0,0.43568204]
[1718657200915,0.01266182,66574.0,66573.0,0.424694]
[1718657201274,0.01266182,66574.0,66573.0,0.43567061]
[1718657201876,0.01266182,66574.0,66573.0,0.44813682]
[1718657202274,0.16286982,66574.0,66573.0,0.43567061]
[1718657202495,0.86370382,66574.0,66573.0,0.38567061]
[1718657202671,0.11266182,66574.0,66573.0,0.43567061]
[1718657202891,0.11266182,66574.0,66573.0,0.44813682]
[1718657203096,0.01266182,66574.0,66573.0,0.44813682]
[1718657204218,0.01266182,66574.0,66573.0,0.6108657]
[1718657204417,0.01266182,66574.0,66573.0,1.0614987]
[1718657204616,0.01266182,66574.0,66573.0,0.7610767]
[1718657205075,0.01266182,66574.0,66573.0,0.6008657]
[1718657205280,0.01266182,66574.0,66573.0,0.44813682]
[1718657205480,0.006,66574.0,66573.0,0.44813682]
[1718657205902,0.2143,66577.0,66573.0,0.44813682]
[1718657206079,0.2143,66577.0,66576.0,0.01246621]
[1718657206275,0.2143,66577.0,66576.0,0.05]
[1718657206481,0.2143,66577.0,66575.0,0.05]
[1718657206482,0.150204,66576.0,66575.0,0.05]
[1718657206901,0.2143,66577.0,66576.0,0.05]
[1718657207118,0.003,66577.0,66576.0,0.05]
[1718657207320,0.2173,66577.0,66576.0,0.05]
[1718657208169,0.2173,66577.0,66576.0,0.06246621]
[1718657208375,0.003,66577.0,66576.0,0.42346621]
[1718657208583,0.003,66577.0,66576.0,0.57367021]
[1718657208784,0.1,66582.0,66581.0,0.06246621]
[1718657209577,0.380322,66596.0,66581.0,0.06246621]
[1718657209578,0.2143,66591.0,66590.0,0.05]
[1718657209780,0.3143,66591.0,66590.0,0.05]
[1718657210126,0.46447,66591.0,66590.0,0.05]
[1718657210530,0.76481,66591.0,66590.0,0.05]
[1718657210932,0.46447,66591.0,66590.0,0.05]
[1718657211141,0.47847,66591.0,66590.0,0.051]
[1718657211507,0.79021782,66591.0,66590.0,0.051]
[1718657212330,0.80421782,66591.0,66590.0,0.051]
[1718657214323,0.65404782,66591.0,66590.0,0.051]
[1718657215174,0.78352885,66591.0,66590.0,0.051]
[1718657215595,0.93369885,66591.0,66590.0,0.051]
[1718657215802,1.22659069,66591.0,66590.0,0.051]
[1718657216003,1.82727069,66591.0,66590.0,0.051]
[1718657216410,1.91678,66591.0,66590.0,0.001]
[1718657216632,2.80014856,66591.0,66590.0,0.001]
[1718657216829,2.82252588,66591.0,66590.0,0.001]
[1718657217074,2.41029925,66591.0,66590.0,0.001]
[1718657217633,2.19599925,66591.0,66590.0,0.001]
[1718657217847,2.33026321,66591.0,66590.0,0.001]
[1718657218236,2.17755065,66591.0,66590.0,0.001]
[1718657218806,2.17770245,66591.0,66590.0,0.001]
[1718657219352,2.04343849,66591.0,66590.0,0.001]
[1718657220236,2.03741189,66591.0,66590.0,0.001]
[1718657220465,1.90743589,66591.0,66590.0,0.001]
[1718657220884,4.12906734,66591.0,66590.0,0.001]
[1718657221084,3.74672424,66591.0,66590.0,0.001]
[1718657221280,0.751032,66575.0,66573.0,0.059394]
[1718657221531,0.150208,66574.0,66573.0,0.059394]
[1718657221735,0.31174782,66574.0,66573.0,0.059394]
[1718657221884,0.31174782,66574.0,66573.0,0.26436021]
[1718657222099,0.31174782,66574.0,66573.0,0.41006021]
[1718657222494,0.25911006,66576.0,66575.0,0.40066621]
[1718657222698,0.35911006,66576.0,66575.0,0.40066621]
[1718657222906,0.67091135,66576.0,66575.0,0.40066621]
[1718657223128,0.88246915,66576.0,66575.0,0.3382]
[1718657223765,0.73226515,66576.0,66575.0,0.3382]
[1718657223964,0.73225652,66576.0,66575.0,0.3882]
[1718657224396,0.67092662,66576.0,66575.0,0.3882]
[1718657224789,0.73228437,66576.0,66575.0,0.3892]
[1718657225042,0.62610129,66576.0,66575.0,0.3892]
[1718657225222,0.62610129,66576.0,66575.0,0.40066621]
[1718657226620,0.62610129,66576.0,66575.0,0.40166621]
[1718657226970,0.62610129,66576.0,66575.0,0.40066621]
[1718657227439,0.63410129,66576.0,66575.0,0.40066621]
[1718657227667,0.63410129,66576.0,66575.0,0.38666621]
[1718657227901,0.63410129,66576.0,66575.0,0.39761862]
[1718657231494,0.41980129,66576.0,66575.0,0.39761862]
[1718657232034,0.41580129,66576.0,66575.0,0.39761862]
[1718657232435,0.41780129,66576.0,66575.0,0.39761862]
[1718657232666,0.41380129,66576.0,66575.0,0.39761862]
[1718657232847,0.41580129,66576.0,66575.0,0.39761862]
[1718657233753,0.41380129,66576.0,66575.0,0.39761862]
[1718657234199,0.41480129,66576.0,66575.0,0.39761862]
[1718657234912,0.47552047,66576.0,66575.0,0.39761862]
[1718657235055,0.47552085,66576.0,66575.0,0.39761862]
[1718657235261,0.41480129,66576.0,66575.0,0.39761862]
[1718657237702,0.45972077,66576.0,66575.0,0.39761862]
[1718657238324,0.4596989,66576.0,66575.0,0.39761862]
[1718657239226,0.41477942,66576.0,66575.0,0.39761862]
[1718657239354,0.48215587,66576.0,66575.0,0.39761862]
[1718657240165,0.54266675,66576.0,66575.0,0.39761862]
[1718657240637,0.48215587,66576.0,66575.0,0.39761862]
[1718657241284,0.47520283,66576.0,66575.0,0.39761862]
[1718657241498,0.48218168,66576.0,66575.0,0.39761862]
[1718657241717,0.54260502,66576.0,66575.0,0.39761862]
[1718657242340,0.54260786,66576.0,66575.0,0.39856462]
[1718657243246,0.47520276,66576.0,66575.0,0.39856462]
[1718657243395,0.54260947,66576.0,66575.0,0.39856462]
[1718657243993,0.47520276,66576.0,66575.0,0.39856462]
[1718657244954,0.76910816,66576.0,66575.0,0.39856462]
[1718657245105,0.47520276,66576.0,66575.0,0.39856462]
[1718657245519,0.47505759,66576.0,66575.0,0.39856462]
[1718657246590,0.54247022,66576.0,66575.0,0.39856462]
[1718657248411,0.54247022,66576.0,66575.0,0.38609841]
[1718657248647,1.75138043,66576.0,66575.0,0.01189841]
[1718657248801,1.84647264,66576.0,66575.0,0.000946]
[1718657249003,2.14688064,66576.0,66575.0,0.000946]
[1718657249206,2.22141267,66576.0,66575.0,0.000946]
[1718657249508,2.14703404,66576.0,66575.0,0.000946]
[1718657250628,2.14603404,66576.0,66575.0,0.000946]
[1718657250855,2.13771939,66576.0,66575.0,0.001946]
[1718657251019,2.14871939,66576.0,66575.0,0.001946]
[1718657251221,2.16071939,66576.0,66575.0,0.001946]
[1718657252046,2.14971939,66576.0,66575.0,0.000946]
[1718657252453,2.16071939,66576.0,66575.0,0.001946]
[1718657253111,2.26071939,66576.0,66575.0,0.001946]
[1718657253354,4.28143609,66576.0,66575.0,0.001946]
[1718657253556,0.150226,66566.0,66560.0,0.05]
[1718657253741,0.82289329,66566.0,66560.0,0.05]
[1718657253893,0.82289329,66566.0,66565.0,0.01988778]
[1718657253894,2.02605755,66566.0,66565.0,0.01988778]
[1718657254095,2.02605755,66566.0,66565.0,0.009383]
[1718657254334,2.19724055,66566.0,66565.0,0.009383]
[1718657254683,1.42515155,66566.0,66565.0,0.009383]
[1718657255143,1.75260455,66566.0,66565.0,0.010383]
[1718657255352,1.15169855,66566.0,66565.0,0.349483]
[1718657255602,0.7961693,66566.0,66565.0,0.41194921]
[1718657255737,0.42577942,66566.0,66565.0,0.42145399]
[1718657256330,0.32577942,66566.0,66565.0,0.57418287]
[1718657256537,0.32577942,66566.0,66565.0,0.72441187]
[1718657256752,0.32577942,66566.0,66565.0,1.03486987]
[1718657256983,0.014,66566.0,66565.0,1.03486987]
[1718657257192,0.014,66566.0,66565.0,0.73441187]
[1718657257600,0.014,66566.0,66565.0,0.72441187]
[1718657257819,0.013,66566.0,66565.0,0.57418287]
[1718657258236,0.04485027,66573.0,66565.0,0.57418287]
[1718657258442,0.04485027,66573.0,66572.0,0.06246621]
[1718657258643,0.1,66574.0,66572.0,0.40206621]
[1718657258843,0.35666826,66573.0,66572.0,0.41257099]
[1718657259316,0.46466826,66573.0,66572.0,0.41257099]
[1718657259516,0.47166826,66573.0,66572.0,0.41257099]
[1718657259720,0.41880531,66573.0,66572.0,0.40206621]
[1718657259919,0.46367906,66573.0,66572.0,0.40206621]
[1718657260169,0.41880531,66573.0,66572.0,0.41257618]
[1718657261007,0.41180531,66573.0,66572.0,0.41257618]